bitfinex/quotes_ETHUSD_20240710
["timestamp","ask_amount","ask_price","bid_price","bid_amount"]
[1720616679192,3.21493,3110.5,3109.1,3.21635]
[1720616679395,0.642976,3110.4,3109.3,2.299]
[1720616679572,3.21467,3110.8,3109.3,5.57945399]
[1720616679793,3.21471,3110.7,3109.3,5.57945399]
[1720616679994,3.21443,3111.0,3109.3,5.57945399]
[1720616680366,3.21471,3110.7,3109.3,5.57945399]
[1720616680567,3.21471,3110.7,3109.4,3.21605]
[1720616680766,0.321471,3110.7,3109.5,0.5579364]
[1720616681405,3.21491,3110.5,3109.3,5.51515]
[1720616681719,3.0,3110.4,3109.3,5.51515]
[1720616682010,3.0,3110.5,3109.3,5.51515]
[1720616682710,3.21512,3110.4,3109.3,2.299]
[1720616682894,3.21527,3110.2,3109.3,2.299]
[1720616683203,3.21513,3110.3,3109.3,2.299]
[1720616683512,3.21443,3111.0,3109.6,3.21578]
[1720616683722,0.321443,3110.9,3109.7,3.60161616]
[1720616684013,0.321443,3110.9,3109.7,3.537308]
[1720616685285,3.535963,3110.9,3109.7,3.537308]
[1720616685493,3.21461,3110.8,3109.3,8.51513]
[1720616685665,3.21461,3110.8,3109.4,3.0]
[1720616685666,3.21486,3110.6,3109.4,3.0]
[1720616686022,3.21387,3111.6,3110.3,3.21508]
[1720616686242,3.21387,3111.6,3110.1,2.4739]
[1720616686243,3.21329,3112.1,3111.2,2.4739]
[1720616686534,3.71775764,3111.9,3111.2,2.4739]
[1720616686703,3.21358,3111.8,3111.2,2.4739]
[1720616686894,3.21358,3111.8,3111.0,7.47]
[1720616687235,0.69313376,3111.7,3111.0,7.47]
[1720616688207,0.50421764,3111.9,3111.0,7.47]
[1720616688406,3.50421764,3111.9,3111.0,7.47]
[1720616689192,6.71768764,3111.9,3111.0,7.47]
[1720616690042,3.50421764,3111.9,3111.0,7.47]
[1720616690245,0.50421764,3111.9,3111.0,7.47]
[1720616691549,0.37176076,3111.8,3111.0,7.47]
[1720616695216,0.50421764,3111.9,3111.0,7.47]
[1720616695552,0.50421764,3111.9,3111.4,5.60478]
[1720616695759,0.50421764,3111.9,3111.5,3.27814382]
[1720616696052,3.21258,3112.8,3111.5,3.27814382]
[1720616696346,3.21258,3112.8,3111.5,6.49192382]
[1720616696347,3.71668698,3112.8,3111.5,6.49192382]
[1720616696546,0.3716687,3112.7,3111.6,0.88827238]
[1720616696759,0.3716687,3112.7,3111.6,4.16625981]
[1720616697040,0.50410698,3112.8,3111.7,3.21366]
[1720616697399,0.50410698,3112.8,3111.8,3.21355]
[1720616698058,6.71665698,3112.8,3111.6,0.88827238]
[1720616698343,6.71665698,3112.8,3111.6,3.21377]
[1720616698507,3.50410698,3112.8,3111.7,3.21366]
[1720616700006,3.50410698,3112.8,3111.8,3.21351]
[1720616700353,3.0,3112.7,3111.8,3.21351]
[1720616700555,0.50410698,3112.8,3111.9,3.21344]
[1720616700710,0.50410698,3112.8,3112.2,5.47504]
[1720616701353,0.50410698,3112.8,3112.2,2.2619]
[1720616701709,0.50410698,3112.8,3112.2,5.47505]
[1720616702233,0.50410698,3112.8,3112.3,6.42601]
[1720616702443,0.50410698,3112.8,3112.3,3.21296]
[1720616702756,3.21172,3113.6,3112.5,3.21284]
[1720616702953,3.21075,3114.6,3113.3,3.21201]
[1720616703147,3.2105,3114.8,3113.3,3.21201]
[1720616703148,0.50393351,3113.7,3113.4,2.8617]
[1720616703361,3.21047,3114.8,3113.6,3.21171]
[1720616703912,3.21047,3114.8,3113.7,3.21161]
[1720616704221,3.20979,3115.5,3114.3,3.21095]
[1720616704222,3.20981,3115.5,3114.3,3.21095]
[1720616704428,3.20981,3115.5,3114.1,14.47112]
[1720616704639,3.20981,3115.5,3114.2,6.21105]
[1720616705002,3.20981,3115.5,3114.2,3.0]
[1720616705146,3.20904,3116.2,3114.1,7.47]
[1720616705147,3.21008,3115.2,3114.1,7.47]
[1720616706285,3.21027,3115.0,3114.1,7.47]
[1720616706686,3.0,3114.9,3114.1,7.47]
[1720616707184,6.21018,3115.1,3114.1,7.47]
[1720616707387,4.70831306,3116.3,3114.1,7.47]
[1720616707388,5.50982,3116.5,3114.6,2.3203]
[1720616707563,3.20903,3116.2,3114.7,6.97098]
[1720616707759,3.20903,3116.2,3115.0,3.21017]
[1720616707989,3.20903,3116.2,3114.9,3.21029]
[1720616708575,3.20884,3116.4,3114.9,3.21032]
[1720616708780,3.20884,3116.4,3114.9,4.712352]
[1720616708993,3.20857,3116.7,3114.8,7.47]
[1720616709151,3.20931,3116.0,3114.8,7.47]
[1720616709351,3.20979,3115.5,3114.8,7.47]
[1720616709990,3.20959,3115.7,3114.8,7.47]
[1720616709991,3.0,3115.4,3114.8,7.47]
[1720616710301,2.2935,3116.0,3114.8,7.47]
[1720616710302,3.0,3115.6,3114.8,7.47]
[1720616710501,6.20955,3115.7,3114.8,7.47]
[1720616710662,0.620955,3115.6,3114.8,7.47]
[1720616711400,0.50370476,3115.9,3114.9,3.21031]
[1720616711893,0.50370476,3115.9,3114.8,7.47]
[1720616712564,0.50370476,3115.9,3114.9,3.21031]
[1720616712773,0.50370476,3115.9,3115.4,3.20982]
[1720616713000,1e-08,3115.9,3115.6,3.20955]
[1720616713151,3.20827,3117.0,3115.7,0.06418295]
[1720616713356,3.20827,3117.0,3115.6,3.20955]
[1720616713596,3.20827,3117.0,3115.7,3.20948]
[1720616713752,3.849898,3117.0,3115.8,0.3273663]
[1720616714563,3.849898,3117.0,3115.8,3.5367963]
[1720616714993,3.849898,3117.0,3115.8,0.3273663]
[1720616715297,3.2086,3116.7,3115.5,10.189082]
[1720616715501,3.090928,3117.0,3115.5,7.47]
[1720616715660,3.20905,3116.2,3115.5,7.47]
[1720616716006,3.20915,3116.1,3115.2,7.47]
[1720616716455,3.0,3116.0,3115.2,7.47]
[1720616716658,6.20909,3116.2,3115.2,7.47]
[1720616716972,3.20917,3116.1,3115.2,7.47]
[1720616717170,3.0,3116.0,3115.2,7.47]
[1720616717379,6.20934,3116.0,3115.2,7.47]
[1720616717698,3.20965,3115.7,3115.2,7.47]
[1720616717866,3.20966,3115.6,3115.2,7.47]
[1720616718066,3.0,3115.5,3114.6,7.47]
[1720616718384,3.21017,3115.1,3114.6,7.47]
[1720616718591,3.21043,3114.9,3114.6,7.47]
[1720616718894,3.21017,3115.1,3114.6,7.47]
[1720616718895,3.0,3115.0,3114.6,7.47]
[1720616719203,3.21044,3114.9,3114.6,7.47]
[1720616719383,3.21048,3114.8,3114.6,7.47]
[1720616719580,3.0,3114.7,3113.9,7.47]
[1720616720272,3.0,3114.8,3113.9,7.47]
[1720616720486,3.21096,3114.4,3113.9,7.47]
[1720616720964,5.4159,3114.8,3113.9,7.47]
[1720616720965,3.0,3114.8,3113.9,7.47]
[1720616721364,3.20956,3115.7,3113.9,7.47]
[1720616721365,3.20978,3115.5,3114.0,0.06422147]
[1720616721591,3.20978,3115.5,3114.3,3.21097]
[1720616721892,3.20969,3115.6,3113.9,9.8696]
[1720616722101,3.21048,3114.8,3113.9,9.8696]
[1720616722660,6.21059,3114.7,3113.9,7.47]
[1720616722894,3.2107,3114.6,3113.9,7.47]
[1720616723094,3.21096,3114.4,3113.9,7.47]
[1720616723396,3.21095,3114.4,3113.9,7.47]
[1720616723570,3.21111,3114.2,3113.9,7.47]
[1720616724415,6.21064,3114.7,3113.9,7.47]
[1720616724567,3.0,3114.7,3113.9,7.47]
[1720616724762,6.21035,3115.0,3113.9,7.47]
[1720616725073,3.0,3115.0,3113.9,7.47]
[1720616725491,3.21039,3114.9,3113.9,7.47]
[1720616725673,3.0,3114.8,3113.9,7.47]
[1720616726205,3.0,3114.8,3114.0,1.047]
[1720616726387,3.21038,3114.9,3114.0,1.047]
[1720616726596,3.0,3114.8,3114.0,1.047]
[1720616726791,3.0,3114.8,3113.9,7.47]
[1720616726978,3.21069,3114.6,3113.9,7.47]
[1720616727183,6.21054,3114.8,3113.9,7.47]
[1720616727376,3.0,3114.8,3113.9,7.47]
[1720616727587,3.21038,3114.9,3113.9,7.47]
[1720616727914,3.0,3114.8,3113.9,7.47]
[1720616728121,3.0,3115.0,3114.0,0.06422144]
[1720616728274,3.20947,3115.8,3114.2,3.21102]
[1720616728471,3.20947,3115.8,3114.4,3.21082]
[1720616728672,3.894,3116.8,3114.1,2.8175]
[1720616728673,0.15819141,3117.0,3114.7,3.0]
[1720616728909,3.20885,3116.4,3115.2,3.21005]
[1720616729112,3.20873,3116.5,3115.2,3.21005]
[1720616729277,3.20873,3116.5,3115.3,3.20994]
[1720616729781,3.20842,3116.8,3115.5,3.20973]
[1720616729978,3.20842,3116.8,3115.6,0.0641864]
[1720616730189,3.20852,3116.7,3115.6,0.0641864]
[1720616730407,3.20852,3116.7,3115.4,3.20982]
[1720616730608,3.2087,3116.6,3115.5,1.067982]
[1720616730818,3.20873,3116.5,3115.5,1.067982]
[1720616731319,3.20857,3116.7,3115.5,1.067982]
[1720616731523,3.20845,3116.8,3115.6,0.06418895]
[1720616731729,3.20852,3116.7,3115.5,4.34188857]
[1720616732012,3.850217,3116.7,3115.6,0.85431719]
[1720616732224,3.0,3116.6,3115.6,0.85431719]
[1720616732917,6.850227,3116.7,3115.6,0.85431719]
[1720616733324,6.850227,3116.7,3115.6,0.91850375]
[1720616733325,3.641697,3116.7,3115.6,0.91850375]
[1720616733475,3.0,3116.7,3115.7,2.2956]
[1720616733671,6.20834,3116.9,3115.8,0.09901199]
[1720616733898,3.0,3116.9,3115.8,0.09901199]
[1720616734114,0.33662214,3117.0,3115.8,0.16319457]
[1720616734115,3.33662214,3117.0,3115.8,0.16319457]
[1720616734277,0.33662214,3117.0,3115.9,0.56682646]
[1720616734472,3.0,3117.1,3115.9,3.84032779]
[1720616734734,6.20796,3117.3,3116.1,3.20912]
[1720616735014,3.2078,3117.4,3116.1,3.20912]
[1720616735317,3.2077,3117.5,3116.2,3.37210118]
[1720616735686,3.75724306,3118.3,3116.4,3.0]
[1720616735687,3.20746,3117.8,3116.4,3.0]
[1720616736033,3.20746,3117.8,3116.6,2.2546]
[1720616736034,3.528306,3117.7,3116.6,2.2546]
[1720616736512,3.528306,3117.7,3116.7,0.09881944]
[1720616736513,3.20771,3117.5,3116.7,0.09881944]
[1720616737110,3.0,3117.4,3116.7,0.09881944]
[1720616737586,6.20771,3117.5,3116.7,0.09881944]
[1720616738175,3.0,3117.5,3116.7,0.09881944]
[1720616738374,0.320746,3117.7,3116.7,0.33416138]
[1720616738590,3.320746,3117.7,3116.7,0.33416138]
[1720616738811,3.320746,3117.7,3116.7,0.39832475]
[1720616738991,4.70586306,3118.7,3116.8,3.20837]
[1720616739189,3.20718,3118.0,3116.8,3.30716805]
[1720616739527,3.20718,3118.0,3116.8,0.09879805]
[1720616739723,3.20731,3117.9,3116.8,0.09879805]
[1720616740076,3.2075,3117.7,3116.8,0.09879805]
[1720616740282,3.52834,3117.6,3116.8,0.09879805]
[1720616740520,3.52834,3117.6,3116.6,9.7246]
[1720616740814,3.52834,3117.6,3116.9,0.09877667]
[1720616740995,3.52834,3117.6,3116.6,9.7246]
[1720616741214,3.52834,3117.6,3117.0,0.09875528]
[1720616741403,0.32075,3117.6,3116.7,0.06416652]
[1720616741586,6.20748,3117.8,3117.1,0.0987339]
[1720616741786,3.20748,3117.8,3116.6,12.93321]
[1720616741975,6.20751,3117.7,3117.2,0.09871252]
[1720616742286,6.20751,3117.7,3116.6,12.93321]
[1720616742508,6.828261,3117.7,3116.7,0.09881944]
[1720616742892,3.620751,3117.7,3116.7,0.09881944]
[1720616743135,3.0,3117.6,3116.7,0.09881944]
[1720616743298,3.0,3117.8,3116.7,0.16298211]
[1720616743845,3.0,3117.8,3116.7,0.09881944]
[1720616743846,3.2076,3117.6,3116.7,0.09881944]
[1720616744005,3.20757,3117.7,3116.7,0.09881944]
[1720616744212,3.0,3117.6,3116.7,0.16298497]
[1720616744412,0.55,3118.6,3116.8,4.19744769]
[1720616744413,3.0,3117.8,3116.8,4.19744769]
[1720616744741,3.0,3118.1,3116.8,4.84225335]
[1720616744924,3.20739,3117.8,3116.8,0.09480566]
[1720616745106,3.0,3117.7,3116.8,0.09480566]
[1720616745432,3.20788,3117.4,3116.9,0.09478427]
[1720616745589,6.20792,3117.3,3116.9,0.09478427]
[1720616745792,6.20792,3117.3,3116.6,9.7246]
[1720616746093,3.20704,3118.2,3117.0,0.09476289]
[1720616746412,2.386,3118.8,3117.1,0.0947415]
[1720616746595,3.2073,3117.9,3117.1,0.0947415]
[1720616746795,3.2073,3117.9,3116.7,3.97246]
[1720616746796,3.2073,3117.9,3116.7,4.18097]
[1720616747031,3.20756,3117.7,3117.2,0.09472012]
[1720616747237,3.849048,3117.7,3116.7,0.97246]
[1720616747733,3.20732,3117.9,3116.8,0.09480566]
[1720616748039,3.20751,3117.7,3116.8,0.09480566]
[1720616748636,3.2083,3117.0,3116.8,0.09480566]
[1720616748831,3.20831,3116.9,3116.8,0.09480566]
[1720616749031,3.20831,3116.9,3116.1,19.63]
[1720616749193,3.20831,3116.9,3116.1,7.47]
[1720616749395,3.20842,3116.8,3116.1,7.47]
[1720616749594,3.20842,3116.8,3116.2,0.0917448]
[1720616749836,3.850092,3116.8,3116.2,0.0917448]
[1720616750030,3.20879,3116.5,3116.2,0.0917448]
[1720616751251,3.20883,3116.4,3116.2,0.0917448]
[1720616752433,3.0,3116.7,3116.2,0.0917448]
[1720616752641,6.20837,3116.9,3116.2,0.0917448]
[1720616752808,3.0,3116.9,3116.2,0.15592841]
[1720616753006,3.0,3116.9,3116.3,2.4868]
[1720616753208,3.0,3117.3,3116.3,2.57873431]
[1720616753763,3.20806,3117.2,3116.3,2.57873431]
[1720616754234,3.0,3117.1,3116.3,2.57873431]
[1720616754538,3.20783,3117.4,3116.3,3.90452074]
[1720616754899,3.20765,3117.6,3116.4,0.06417301]
[1720616755240,3.20765,3117.6,3116.5,0.08884573]
[1720616755241,3.2078,3117.4,3116.5,0.08884573]
[1720616755536,3.2078,3117.4,3116.3,3.81258643]
[1720616755741,3.2078,3117.4,3116.6,0.08882434]
[1720616755923,3.20801,3117.2,3116.3,2.4868]
[1720616756099,3.20848,3116.8,3116.4,0.08886712]
[1720616756304,6.20811,3117.1,3116.3,2.4868]
[1720616756500,3.20811,3117.1,3116.3,2.4868]
[1720616756730,3.0,3117.0,3116.4,0.08293762]
[1720616756917,3.20832,3116.9,3116.4,0.08293762]
[1720616757636,3.50823,3117.0,3116.4,0.08293762]
[1720616757844,3.20841,3116.8,3116.4,0.08293762]
[1720616758141,3.20841,3116.8,3116.1,7.47]
[1720616758302,3.20841,3116.8,3116.5,0.08291623]
[1720616758636,3.20841,3116.8,3116.1,7.47]
[1720616758637,3.880074,3116.8,3116.1,7.47]
[1720616759145,3.20841,3116.8,3116.2,0.08313914]
[1720616759916,3.50826,3117.0,3116.2,0.08313914]
[1720616760114,3.0,3116.9,3116.2,0.08313914]
[1720616760525,3.0,3117.1,3116.2,0.08313914]
[1720616760727,3.2087,3116.6,3116.2,0.08313914]
[1720616761111,6.41698,3116.8,3116.2,0.08313914]
[1720616761334,3.850168,3116.8,3116.2,0.08313914]
[1720616761538,3.20857,3116.7,3116.2,0.08313914]
[1720616761771,3.0,3117.1,3116.2,0.08313914]
[1720616761939,3.0,3117.1,3116.2,0.14731425]
[1720616762141,3.20764,3117.6,3116.3,3.20891]
[1720616762479,3.20779,3117.5,3116.5,2.3079]
[1720616762829,3.2075,3117.7,3116.6,0.0803303]
[1720616763142,3.2076,3117.6,3116.6,0.0803303]
[1720616763343,3.20734,3117.9,3116.6,3.2889003]
[1720616763542,6.41513,3117.7,3116.6,3.2889003]
[1720616763861,3.20776,3117.5,3116.7,0.56609668]
[1720616764070,6.41514,3117.7,3116.6,0.0803303]
[1720616764254,6.41514,3117.7,3116.8,0.08012878]
[1720616764255,6.41511,3117.7,3116.8,0.08012878]
[1720616764579,3.20761,3117.6,3116.9,0.08009152]
[1720616764757,3.20773,3117.5,3116.5,2.3079]
[1720616764964,3.20773,3117.5,3117.0,0.08007014]
[1720616765147,3.2078,3117.4,3116.7,7.47]
[1720616765455,3.2079,3117.3,3117.1,0.08004876]
[1720616765628,3.2079,3117.3,3116.7,7.47]
[1720616765830,4.149255,3117.5,3117.2,0.08005005]
[1720616765831,3.20773,3117.5,3117.2,0.08005005]
[1720616766171,3.20773,3117.5,3117.3,0.08002867]
[1720616766373,3.0,3117.6,3116.7,7.47]
[1720616766667,3.0,3117.6,3117.4,0.08001182]
[1720616766865,3.0,3117.6,3116.8,0.747]
[1720616767030,6.20765,3117.6,3116.8,0.747]
[1720616767226,6.20765,3117.6,3116.9,0.08011873]
[1720616767430,3.20777,3117.5,3116.9,0.08011873]
[1720616767646,4.149312,3117.5,3116.9,0.08011873]
[1720616767844,3.20785,3117.4,3116.9,0.08011873]
[1720616768029,3.20785,3117.4,3116.7,7.47]
[1720616768249,3.20785,3117.4,3117.0,0.08006334]
[1720616768469,3.20785,3117.4,3116.7,7.47]
[1720616768637,3.0,3117.6,3117.1,0.08004195]
[1720616768839,3.0,3117.8,3116.7,8.44779]
[1720616769036,3.0,3117.8,3117.2,0.08005231]
[1720616769242,3.0,3117.8,3116.7,11.65629]
[1720616769744,3.0,3117.8,3116.8,3.35268762]
[1720616770057,3.804,3118.7,3117.1,5.6932]
[1720616770058,3.0,3117.9,3117.1,5.6932]
[1720616770262,3.20708,3118.2,3117.1,5.75735303]
[1720616770465,3.0,3118.1,3117.2,0.07986637]
[1720616772680,6.20708,3118.1,3117.2,0.07986637]
[1720616772890,7.148492,3118.1,3117.2,0.07986637]
[1720616773184,3.2079,3117.3,3117.2,0.07986637]
[1720616773358,3.2079,3117.3,3116.6,2.4953]
[1720616773530,3.20816,3117.1,3116.4,7.47]
[1720616773738,3.20852,3116.7,3116.4,7.47]
[1720616773950,0.320816,3117.0,3115.7,7.47]
[1720616773951,3.20884,3116.4,3115.7,7.47]
[1720616774200,3.529066,3117.0,3115.7,7.47]
[1720616774201,0.320816,3117.0,3115.7,7.47]
[1720616774351,3.20915,3116.1,3115.7,7.47]
[1720616774754,3.20867,3116.6,3115.1,7.47]
[1720616774755,3.20944,3115.8,3115.1,7.47]
[1720616775055,3.20944,3115.8,3115.1,8.44275]
[1720616776288,9.41864,3116.0,3115.1,8.44275]
[1720616776694,3.20938,3115.9,3115.1,8.44275]
[1720616776873,6.41882,3115.9,3115.1,8.44275]
[1720616777200,3.20938,3115.9,3115.1,8.44275]
[1720616777654,3.20946,3115.8,3115.1,8.44275]
[1720616778052,6.20932,3116.0,3115.1,8.44275]
[1720616778298,3.0,3116.0,3115.2,1.13422504]
[1720616778602,3.20864,3116.6,3115.3,3.27411775]
[1720616778897,3.20864,3116.6,3115.3,6.27411775]
[1720616779564,3.20883,3116.4,3115.3,0.06418775]
[1720616779762,3.20883,3116.4,3115.2,1.13421267]
[1720616779990,3.529076,3117.0,3115.1,7.47]
[1720616779991,3.20905,3116.2,3115.1,7.47]
[1720616780195,3.20931,3116.0,3115.1,7.47]
[1720616780362,3.0,3116.1,3115.2,0.06419683]
[1720616780554,0.320816,3117.0,3115.4,3.2098]
[1720616780753,0.15695343,3117.3,3115.2,3.27419276]
[1720616780754,3.0,3116.7,3115.2,3.27419276]
[1720616780985,3.20886,3116.4,3115.2,3.21001]
[1720616781367,3.20886,3116.4,3115.2,6.41996]
[1720616781650,3.20886,3116.4,3115.2,3.20996]
[1720616781846,3.20894,3116.3,3115.1,7.47]
[1720616782094,3.20915,3116.1,3115.2,1.293768]
[1720616782300,3.20942,3115.9,3115.1,7.47]
[1720616782864,3.20946,3115.8,3115.1,7.47]
[1720616785055,6.20908,3116.2,3115.1,7.47]
[1720616785290,3.20925,3116.0,3115.1,7.47]
[1720616785599,3.0,3115.9,3115.1,7.47]
[1720616785769,3.0,3115.9,3115.1,8.44275]
[1720616786107,3.20945,3115.8,3115.1,8.44275]
[1720616786345,6.41897,3115.8,3115.1,7.47]
[1720616786471,3.0,3115.7,3115.1,7.47]
[1720616786668,3.0,3115.7,3115.0,2.2575]
[1720616786872,6.20956,3115.7,3115.2,0.07089095]
[1720616787064,6.20956,3115.7,3115.1,0.07091235]
[1720616787275,3.20986,3115.4,3115.3,0.07086954]
[1720616787479,3.20986,3115.4,3115.2,0.07089095]
[1720616787678,3.20986,3115.4,3114.8,7.47]
[1720616788181,3.20986,3115.4,3114.9,0.07095518]
[1720616788385,6.41979,3115.4,3114.9,0.07095518]
[1720616788587,3.21007,3115.2,3114.9,0.07095518]
[1720616788962,3.0,3115.1,3114.9,0.07095518]
[1720616790058,3.0,3115.1,3114.4,7.47]
[1720616790306,6.21017,3115.1,3115.0,0.06860454]
[1720616790457,3.21057,3114.8,3114.1,2.4693]
[1720616790666,3.2106,3114.7,3114.1,2.4693]
[1720616790888,3.21069,3114.6,3114.1,2.4693]
[1720616791196,3.21089,3114.4,3113.3,2.2567]
[1720616791712,3.21111,3114.2,3113.3,2.2567]
[1720616791876,3.21122,3114.1,3113.3,2.2567]
[1720616792476,3.21111,3114.2,3113.3,2.2567]
[1720616792671,3.2109,3114.4,3113.4,0.0642345]
[1720616793001,3.2109,3114.4,3113.5,0.53209345]
[1720616793188,3.0,3114.3,3113.5,0.53209345]
[1720616793789,6.21099,3114.3,3113.5,0.53209345]
[1720616794121,3.0,3114.3,3113.5,0.53209345]
[1720616794920,6.211,3114.3,3113.5,0.53209345]
[1720616795218,3.2111,3114.2,3113.3,2.2567]
[1720616795624,3.2112,3114.1,3113.3,2.2567]
[1720616796231,3.0,3114.3,3113.4,0.06423443]
[1720616796449,3.2108,3114.5,3113.4,0.06423443]
[1720616796598,3.0,3115.0,3113.4,0.06423443]
[1720616796599,3.0,3114.4,3113.5,0.55328744]
[1720616796795,0.50381266,3114.7,3113.8,3.21144]
[1720616797002,3.21018,3115.1,3114.0,2.336]
[1720616797308,3.2103,3115.0,3114.0,2.336]
[1720616797527,3.2103,3115.0,3114.1,0.56116179]
[1720616798144,3.21038,3114.9,3114.1,0.56116179]
[1720616798325,3.21038,3114.9,3114.0,2.336]
[1720616798835,6.42084,3114.9,3114.0,2.336]
[1720616799037,3.21038,3114.9,3114.0,2.336]
[1720616799411,6.42045,3115.1,3114.0,2.336]
[1720616799599,3.0,3115.2,3114.1,0.2336]
[1720616799795,4.3117456,3116.2,3114.4,3.21081]
[1720616799796,3.20954,3115.8,3114.4,3.21081]
[1720616800001,3.20942,3115.9,3114.5,0.61420545]
[1720616800234,6.41886,3115.9,3114.8,2.3299]
[1720616800542,3.20942,3115.9,3114.9,0.0641996]
[1720616800846,6.41886,3115.9,3115.0,0.56045696]
[1720616801300,3.20942,3115.9,3115.0,0.56045696]
[1720616801641,3.2093,3116.0,3115.0,0.56045696]
[1720616801844,3.2093,3116.0,3115.1,0.06248129]
[1720616802013,0.5037456,3116.2,3115.1,0.06248129]
[1720616802217,3.58043256,3116.1,3115.1,0.06248129]
[1720616802597,6.20929,3116.0,3115.1,0.06248129]
[1720616803198,3.0,3116.0,3115.1,0.06248129]
[1720616804050,3.0,3116.0,3115.2,3.21006]
[1720616804205,0.5037456,3116.2,3115.3,0.06419102]
[1720616804556,3.20868,3116.6,3115.4,0.65462649]
[1720616804709,3.20868,3116.6,3115.4,3.92865738]
[1720616804909,3.71209376,3116.7,3115.6,2.341]
[1720616805124,3.20834,3116.9,3115.7,3.20946]
[1720616805125,6.41674,3116.9,3115.7,3.20946]
[1720616805309,3.20814,3117.1,3115.8,3.27361964]
[1720616805528,0.50345003,3117.2,3116.0,3.20923]
[1720616805697,3.20795,3117.3,3116.1,0.06417217]
[1720616805902,3.20763,3117.6,3116.3,2.445]
[1720616806137,3.2077,3117.5,3116.4,0.0641691]
[1720616806440,3.2077,3117.5,3116.4,0.12579095]
[1720616806745,3.57891791,3117.4,3116.4,0.06162185]
[1720616806901,3.20801,3117.2,3116.4,0.06162185]
[1720616807097,3.20793,3117.3,3116.4,0.06162185]
[1720616807337,3.20812,3117.1,3116.4,0.06162185]
[1720616807837,3.20832,3116.9,3116.4,0.06162185]
[1720616808049,0.320832,3116.8,3116.4,0.06162185]
[1720616808251,0.320832,3116.8,3116.0,7.47]
[1720616808551,0.320832,3116.8,3116.5,0.06159365]
[1720616808846,0.320832,3116.8,3116.6,0.06157226]
[1720616809047,6.20822,3117.0,3116.0,7.47]
[1720616809252,3.0,3117.0,3116.7,0.06155087]
[1720616809416,6.2081,3117.2,3116.0,10.67922]
[1720616809742,3.0,3117.2,3116.8,0.06152948]
[1720616809914,3.0,3117.2,3116.1,3.20904]
[1720616810113,3.20823,3117.0,3116.0,7.47]
[1720616810339,3.33711079,3117.2,3116.2,0.06165783]
[1720616810648,3.0,3117.1,3116.3,0.06163643]
[1720616810807,3.0,3117.1,3116.1,6.41812]
[1720616811008,3.33711079,3117.2,3116.4,0.06161504]
[1720616811215,0.65450308,3117.1,3116.1,3.20905]
[1720616811434,0.65450308,3117.1,3116.5,0.06159365]
[1720616811761,0.65450308,3117.1,3116.6,0.06157226]
[1720616811958,0.65450308,3117.1,3116.1,3.20905]
[1720616812272,3.33711079,3117.2,3116.2,0.06165783]
[1720616812775,3.0,3117.1,3116.2,0.06165783]
[1720616813084,3.54512079,3117.2,3116.2,0.06165783]
[1720616813284,3.20832,3116.9,3116.2,0.06165783]
[1720616813440,3.0,3117.1,3116.2,0.06165783]
[1720616813441,3.0,3117.1,3116.3,2.2997]
[1720616813778,3.33711079,3117.2,3116.3,2.91837921]
[1720616814084,3.20729,3117.9,3116.3,6.19138097]
[1720616814085,3.20756,3117.7,3116.3,6.19138097]
[1720616814233,3.20756,3117.7,3116.5,3.20872]
[1720616814439,3.2077,3117.5,3116.5,3.2728864]
[1720616814670,0.37110791,3117.4,3116.6,0.06157226]
[1720616815084,3.20756,3117.7,3116.7,2.4588]
[1720616815233,6.71096911,3117.6,3116.7,2.4588]
[1720616815439,6.71096911,3117.6,3116.8,0.06111205]
[1720616816637,3.20769,3117.5,3116.8,0.06111205]
[1720616816838,3.0,3117.4,3116.8,0.06111205]
[1720616817074,0.620769,3117.3,3116.8,0.06111205]
[1720616817272,3.20811,3117.1,3116.8,0.06111205]
[1720616817483,0.620769,3117.3,3116.2,2.3755]
[1720616817710,6.71102911,3117.6,3116.9,0.05905266]
[1720616817908,3.50337911,3117.6,3116.3,0.06417518]
[1720616818063,0.50337911,3117.6,3117.0,0.05903127]
[1720616818263,0.50337911,3117.6,3116.7,7.47]
[1720616818504,6.91869911,3117.6,3117.1,0.05900989]
[1720616818678,3.99186991,3117.5,3116.7,7.47]
[1720616818885,7.19956991,3117.5,3117.2,0.05898851]
[1720616819106,7.19956991,3117.5,3116.7,7.47]
[1720616819299,7.19956991,3117.5,3117.3,0.05896713]
[1720616819502,7.19956991,3117.5,3116.7,7.47]
[1720616819991,7.19956991,3117.5,3116.8,0.05907404]
[1720616820193,4.2988599,3117.4,3116.8,0.05907404]
[1720616820473,6.41631,3117.1,3116.8,0.05907404]
[1720616821109,3.20808,3117.2,3116.8,0.05907404]
[1720616821321,3.0,3117.1,3116.8,0.05907404]
[1720616821605,6.20796,3117.3,3116.8,0.05907404]
[1720616821606,3.0,3117.3,3116.8,0.05907404]
[1720616821772,3.20775,3117.5,3116.8,0.05907404]
[1720616821972,3.37111291,3117.4,3116.8,0.05907404]
[1720616822477,3.20811,3117.1,3116.8,0.05907404]
[1720616822810,3.37111291,3117.4,3116.8,0.05907404]
[1720616822965,3.50337911,3117.6,3116.9,2.394]
[1720616823165,3.50337911,3117.6,3117.0,0.05711506]
[1720616823166,3.0,3117.5,3117.0,0.05711506]
[1720616823568,0.50337911,3117.6,3117.0,0.05711506]
[1720616823773,3.20744,3117.8,3117.0,0.05711506]
[1720616824603,3.20724,3118.0,3117.0,0.30864277]
[1720616824803,3.20713,3118.1,3117.0,0.05711506]
[1720616825007,3.20736,3117.9,3117.0,0.05711506]
[1720616825623,3.0,3117.8,3117.0,0.05711506]
[1720616825783,6.20741,3117.8,3117.0,0.05711506]